fUST/lending_fUST_20250206
["ID","MTS","AMOUNT","RATE_DAILY","PERIOD"]
[351872671,1738827041002,-500.0,0.00013835,2]
[351872672,1738827041012,-500.0,0.00013835,2]
[351872673,1738827041021,-500.0,0.00013835,2]
[351872674,1738827041031,-500.0,0.00013835,2]
[351872675,1738827041041,-500.0,0.00013835,2]
[351872676,1738827041051,-500.0,0.00013835,2]
[351872677,1738827041061,-964.42,0.00013835,2]
[351872678,1738827041070,-580.13711305,0.00013835,2]
[351872679,1738827041081,-1017.08,0.00013835,2]
[351872680,1738827041090,-500.0,0.00013835,2]
[351872681,1738827041100,-500.0,0.00013835,2]
[351872682,1738827041110,-500.0,0.00013835,2]
[351872683,1738827041121,-500.0,0.00013835,2]
[351872684,1738827041131,-500.0,0.00013835,2]
[351872685,1738827041141,-500.0,0.00013835,2]
[351872686,1738827041150,-465.47798974,0.00013835,2]
[351872687,1738827041160,-1266.49,0.00013835,2]
[351872688,1738827041170,-518.09,0.00013835,2]
[351872689,1738827041179,-397.56830328,0.00013835,2]
[351872690,1738827041189,-500.0,0.00013835,2]
[351872691,1738827041199,-500.0,0.00013835,2]
[351872692,1738827041208,-500.0,0.00013835,2]
[351872693,1738827041218,-1116.83,0.00013835,2]
[351872694,1738827041227,-500.0,0.00013835,2]
[351872695,1738827041237,-500.0,0.00013835,2]
[351872696,1738827041247,-500.0,0.00013835,2]
[351872697,1738827041257,-703.29,0.00013835,2]
[351872698,1738827041267,-500.0,0.00013835,2]
[351872699,1738827041277,-500.0,0.00013835,2]
[351872700,1738827041287,-643.09538964,0.00013835,2]
[351872701,1738827041297,-500.0,0.00013835,2]
[351872702,1738827041306,-500.0,0.00013835,2]
[351872703,1738827041317,-500.0,0.00013835,2]
[351872704,1738827041327,-500.0,0.00013835,2]
[351872705,1738827041337,-342.81882242,0.00013835,2]
[351872706,1738827041347,-500.0,0.00013835,2]
[351872707,1738827041357,-500.0,0.00013835,2]
[351872708,1738827041367,-500.0,0.00013835,2]
[351872709,1738827041380,-500.0,0.00013835,2]
[351872710,1738827041389,-500.0,0.00013835,2]
[351872711,1738827041399,-500.0,0.00013835,2]
[351872712,1738827041409,-759.98,0.00013835,2]
[351872713,1738827041419,-235.40271726,0.00013835,2]
[351872714,1738827041429,-500.0,0.00013835,2]
[351872715,1738827041439,-500.0,0.00013835,2]
[351872716,1738827041449,-500.0,0.00013835,2]
[351872717,1738827041459,-500.0,0.00013835,2]
[351872718,1738827041469,-500.0,0.00013835,2]
[351872719,1738827041479,-500.0,0.00013835,2]
[351872720,1738827041489,-569.38,0.00013835,2]
[351872721,1738827041499,-500.0,0.00013835,2]
[351872722,1738827041508,-743.19,0.00013835,2]
[351872723,1738827041518,-500.0,0.00013835,2]
[351872724,1738827041528,-500.0,0.00013835,2]
[351872725,1738827041538,-500.0,0.00013835,2]
[351872726,1738827041548,-1257.54,0.00013835,2]
[351872727,1738827041557,-500.0,0.00013835,2]
[351872728,1738827041566,-962.78,0.00013835,2]
[351872729,1738827041576,-1355.69,0.00013835,2]
[351872730,1738827041586,-3143.94,0.00013835,2]
[351872731,1738827041596,-1695.93,0.00013835,2]
[351872732,1738827041605,-1700.76,0.00013835,2]
[351872733,1738827041615,-815.36,0.00013835,2]
[351872734,1738827041625,-500.0,0.00013835,2]
[351872735,1738827041634,-500.0,0.00013835,2]
[351872736,1738827041644,-500.0,0.00013835,2]
[351872737,1738827041653,-500.0,0.00013835,2]
[351872738,1738827041664,-500.0,0.00013835,2]
[351872739,1738827041675,-604.9,0.00013835,2]
[351872740,1738827041689,-433.51019957,0.00013835,2]
[351872741,1738827041699,-500.0,0.00013835,2]
[351872742,1738827041709,-500.0,0.00013835,2]
[351872743,1738827041719,-1235.37,0.00013835,2]
[351872744,1738827041730,-713.69,0.00013835,2]
[351872745,1738827041740,-500.0,0.00013835,2]
[351872746,1738827041749,-500.0,0.00013835,2]
[351872747,1738827041825,-500.0,0.00013835,2]
[351872748,1738827041836,-3813.41,0.00013835,2]
[351872749,1738827041846,-1676.44,0.00013835,2]
[351872750,1738827041857,-500.0,0.00013835,2]
[351872751,1738827041867,-500.0,0.00013835,2]
[351872752,1738827041876,-500.0,0.00013835,2]
[351872753,1738827041886,-500.0,0.00013835,2]
[351872754,1738827041896,-500.0,0.00013835,2]
[351872755,1738827041907,-500.0,0.00013835,2]
[351872756,1738827041917,-500.0,0.00013835,2]
[351872757,1738827041927,-606.12,0.00013835,2]
[351872758,1738827041937,-13091.96,0.00013835,2]
[351872759,1738827041947,-582.56,0.00013835,2]
[351872760,1738827041957,-500.0,0.00013835,2]
[351872761,1738827041966,-500.0,0.00013835,2]
[351872762,1738827041975,-500.0,0.00013835,2]
[351872763,1738827041984,-1073.36,0.00013835,2]
[351872764,1738827041995,-500.0,0.00013835,2]
[351872765,1738827042009,-3485.2,0.00013835,2]
[351872766,1738827042025,-609.56,0.00013835,2]
[351872767,1738827042034,-645.54,0.00013835,2]
[351872768,1738827042044,-500.0,0.00013835,2]
[351872769,1738827042054,-1343.15,0.00013835,2]
[351872770,1738827042064,-500.0,0.00013835,2]
[351872771,1738827042074,-500.0,0.00013835,2]
[351872772,1738827042083,-500.0,0.00013835,2]
[351872773,1738827042093,-620.89,0.00013835,2]
[351872774,1738827042103,-3645.46,0.00013835,2]
[351872775,1738827042115,-2566.62,0.00013835,2]
[351872776,1738827042128,-500.0,0.00013835,2]
[351872777,1738827042138,-500.0,0.00013835,2]
[351872778,1738827042147,-3471.13,0.00013835,2]
[351872779,1738827042157,-856.46,0.00013835,2]
[351872780,1738827042167,-500.0,0.00013835,2]
[351872781,1738827042177,-2863.41,0.00013835,2]
[351872782,1738827042186,-500.0,0.00013835,2]
[351872783,1738827042196,-2602.07,0.00013835,2]
[351872784,1738827042205,-1320.56,0.00013835,2]
[351872785,1738827042214,-1122.39,0.00013835,2]
[351872786,1738827042223,-500.0,0.00013835,2]
[351872787,1738827042232,-500.0,0.00013835,2]
[351872788,1738827042241,-500.0,0.00013835,2]
[351872789,1738827042251,-500.0,0.00013835,2]
[351872790,1738827042261,-1221.21,0.00013835,2]
[351872791,1738827042278,-500.0,0.00013835,2]
[351872792,1738827042288,-500.0,0.00013835,2]
[351872793,1738827042298,-500.0,0.00013835,2]
[351872794,1738827042308,-557.12,0.00013835,2]
[351872795,1738827042317,-500.0,0.00013835,2]
[351872796,1738827042326,-500.0,0.00013835,2]
[351872797,1738827042336,-500.0,0.00013835,2]
[351872798,1738827042346,-1103.49,0.00013835,2]
[351872799,1738827042356,-634.14,0.00013835,2]
[351872800,1738827042365,-500.0,0.00013835,2]
[351872801,1738827042374,-1441.66,0.00013835,2]
[351872802,1738827042383,-500.0,0.00013835,2]
[351872803,1738827042393,-587.65,0.00013835,2]
[351872804,1738827042402,-500.0,0.00013835,2]
[351872805,1738827042411,-500.0,0.00013835,2]
[351872806,1738827042420,-800.41,0.00013835,2]
[351872807,1738827042429,-500.0,0.00013835,2]
[351872808,1738827042439,-17159.54,0.00013835,2]
[351872809,1738827042450,-24314.24,0.00013835,2]
[351872810,1738827042459,-500.0,0.00013835,2]
[351872811,1738827042469,-1267.0,0.00013835,2]
[351872812,1738827042478,-500.0,0.00013835,2]
[351872813,1738827042488,-1324.23,0.00013835,2]
[351872814,1738827042497,-655.25,0.00013835,2]
[351872815,1738827042506,-500.0,0.00013835,2]
[351872816,1738827042516,-3148.27,0.00013835,2]
[351872817,1738827042526,-2149.83,0.00013835,2]
[351872818,1738827042535,-500.0,0.00013835,2]
[351872819,1738827042545,-1890.03,0.00013835,2]
[351872820,1738827042556,-500.0,0.00013835,2]
[351872821,1738827042565,-500.0,0.00013835,2]
[351872822,1738827042575,-515.71,0.00013835,2]
[351872823,1738827042584,-6949.43,0.00013835,2]
[351872824,1738827042595,-500.0,0.00013835,2]
[351872825,1738827042604,-500.0,0.00013835,2]
[351872826,1738827042614,-500.0,0.00013835,2]
[351872827,1738827042623,-1234.02,0.00013835,2]
[351872828,1738827042632,-500.0,0.00013835,2]
[351872829,1738827042642,-218.19091382,0.00013906,2]
[351872830,1738827042651,-500.0,0.00013972,2]
[351872831,1738827042660,-500.0,0.00013972,2]
[351872832,1738827042670,-500.0,0.00013972,2]
[351872833,1738827042684,-500.0,0.00013972,2]
[351872834,1738827042694,-500.0,0.00013972,2]
[351872835,1738827042703,-500.0,0.00013972,2]
[351872836,1738827042713,-500.0,0.00013972,2]
[351872837,1738827042732,-500.0,0.00013972,2]
[351872838,1738827042744,-500.0,0.00013972,2]
[351872839,1738827042755,-500.0,0.00013972,2]
[351872840,1738827042764,-500.0,0.00013972,2]
[351872841,1738827042774,-500.0,0.00013972,2]
[351872842,1738827042784,-964.42,0.00013972,2]
[351872843,1738827042793,-1017.08,0.00013972,2]
[351872844,1738827042803,-500.0,0.00013972,2]
[351872845,1738827042812,-500.0,0.00013972,2]
[351872846,1738827042821,-500.0,0.00013972,2]
[351872847,1738827042831,-500.0,0.00013972,2]
[351872848,1738827042841,-500.0,0.00013972,2]
[351872849,1738827042850,-500.0,0.00013972,2]
[351872850,1738827042861,-1266.49,0.00013972,2]
[351872851,1738827042873,-518.09,0.00013972,2]
[351872852,1738827042886,-500.0,0.00013972,2]
[351872853,1738827042898,-500.0,0.00013972,2]
[351872854,1738827042907,-500.0,0.00013972,2]
[351872855,1738827042917,-1116.83,0.00013972,2]
[351872856,1738827042927,-500.0,0.00013972,2]
[351872857,1738827042936,-500.0,0.00013972,2]
[351872858,1738827042946,-500.0,0.00013972,2]
[351872859,1738827042956,-703.29,0.00013972,2]
[351872860,1738827042965,-500.0,0.00013972,2]
[351872861,1738827042975,-500.0,0.00013972,2]
[351872862,1738827042984,-500.0,0.00013972,2]
[351872863,1738827042994,-500.0,0.00013972,2]
[351872864,1738827043003,-500.0,0.00013972,2]
[351872865,1738827043012,-500.0,0.00013972,2]
[351872866,1738827043022,-500.0,0.00013972,2]
[351872867,1738827043031,-500.0,0.00013972,2]
[351872868,1738827043041,-500.0,0.00013972,2]
[351872869,1738827043051,-500.0,0.00013972,2]
[351872870,1738827043061,-500.0,0.00013972,2]
[351872871,1738827043071,-500.0,0.00013972,2]
[351872872,1738827043081,-759.98,0.00013972,2]
[351872873,1738827043090,-500.0,0.00013972,2]
[351872874,1738827043100,-500.0,0.00013972,2]
[351872875,1738827043109,-500.0,0.00013972,2]
[351872876,1738827043120,-500.0,0.00013972,2]
[351872877,1738827043129,-500.0,0.00013972,2]
[351872878,1738827043139,-500.0,0.00013972,2]
[351872879,1738827043149,-569.38,0.00013972,2]
[351872880,1738827043158,-500.0,0.00013972,2]
[351872881,1738827043168,-743.19,0.00013972,2]
[351872882,1738827043177,-500.0,0.00013972,2]
[351872884,1738827043187,-500.0,0.00013972,2]
[351872886,1738827043197,-500.0,0.00013972,2]
[351872888,1738827043206,-1257.54,0.00013972,2]
[351872890,1738827043215,-500.0,0.00013972,2]
[351872892,1738827043224,-962.78,0.00013972,2]
[351872894,1738827043233,-1355.69,0.00013972,2]
[351872896,1738827043243,-3143.94,0.00013972,2]
[351872898,1738827043253,-1695.93,0.00013972,2]
[351872900,1738827043263,-1700.76,0.00013972,2]
[351872902,1738827043273,-815.36,0.00013972,2]
[351872904,1738827043282,-500.0,0.00013972,2]
[351872906,1738827043292,-500.0,0.00013972,2]
[351872908,1738827043303,-500.0,0.00013972,2]
[351872910,1738827043313,-500.0,0.00013972,2]
[351872912,1738827043323,-604.9,0.00013972,2]
[351872914,1738827043332,-500.0,0.00013972,2]
[351872916,1738827043342,-500.0,0.00013972,2]
[351872918,1738827043351,-1235.37,0.00013972,2]
[351872920,1738827043360,-500.0,0.00013972,2]
[351872922,1738827043370,-713.69,0.00013972,2]
[351872924,1738827043380,-500.0,0.00013972,2]
[351872927,1738827043390,-500.0,0.00013972,2]
[351872929,1738827043401,-3813.41,0.00013972,2]
[351872931,1738827043410,-1676.44,0.00013972,2]
[351872933,1738827043420,-500.0,0.00013972,2]
[351872935,1738827043429,-500.0,0.00013972,2]
[351872937,1738827043439,-500.0,0.00013972,2]
[351872939,1738827043448,-500.0,0.00013972,2]
[351872941,1738827043458,-500.0,0.00013972,2]
[351872943,1738827043467,-500.0,0.00013972,2]
[351872945,1738827043476,-500.0,0.00013972,2]
[351872947,1738827043486,-606.12,0.00013972,2]
[351872949,1738827043496,-13091.96,0.00013972,2]
[351872951,1738827043505,-582.56,0.00013972,2]
[351872953,1738827043514,-500.0,0.00013972,2]
[351872955,1738827043524,-500.0,0.00013972,2]
[351872957,1738827043534,-500.0,0.00013972,2]
[351872959,1738827043543,-1073.36,0.00013972,2]
[351872961,1738827043553,-500.0,0.00013972,2]
[351872963,1738827043563,-3485.2,0.00013972,2]
[351872965,1738827043572,-609.56,0.00013972,2]
[351872967,1738827043582,-645.54,0.00013972,2]
[351872969,1738827043592,-500.0,0.00013972,2]
[351872971,1738827043601,-1343.15,0.00013972,2]
[351872973,1738827043612,-500.0,0.00013972,2]
[351872975,1738827043622,-500.0,0.00013972,2]
[351872977,1738827043631,-226.68405958,0.00013972,2]
[351872979,1738827043641,-620.89,0.00013972,2]
[351872981,1738827043650,-3645.46,0.00013972,2]
[351872983,1738827043660,-2566.62,0.00013972,2]
[351872985,1738827043671,-500.0,0.00013972,2]
[351872987,1738827043685,-500.0,0.00013972,2]
[351872989,1738827043695,-3471.13,0.00013972,2]
[351872991,1738827043704,-856.46,0.00013972,2]
[351872994,1738827043715,-500.0,0.00013972,2]
[351872996,1738827043725,-2863.41,0.00013972,2]
[351872998,1738827043735,-500.0,0.00013972,2]
[351873000,1738827043744,-2602.07,0.00013972,2]
[351873002,1738827043755,-1320.56,0.00013972,2]
[351873004,1738827043765,-1122.39,0.00013972,2]
[351873006,1738827043774,-500.0,0.00013972,2]
[351873008,1738827043783,-500.0,0.00013972,2]
[351873010,1738827043793,-500.0,0.00013972,2]
[351873012,1738827043802,-500.0,0.00013972,2]
[351873014,1738827043812,-1221.21,0.00013972,2]
[351873016,1738827043822,-500.0,0.00013972,2]
[351873018,1738827043831,-500.0,0.00013972,2]
[351873020,1738827043841,-500.0,0.00013972,2]
[351873021,1738827043850,-557.12,0.00013972,2]
[351873022,1738827043860,-500.0,0.00013972,2]
[351873023,1738827043869,-500.0,0.00013972,2]
[351873024,1738827043879,-500.0,0.00013972,2]
[351873025,1738827043888,-1103.49,0.00013972,2]
[351873026,1738827043898,-634.14,0.00013972,2]
[351873027,1738827043908,-500.0,0.00013972,2]
[351873028,1738827043918,-1441.66,0.00013972,2]
[351873029,1738827043928,-500.0,0.00013972,2]
[351873030,1738827043938,-587.65,0.00013972,2]
[351873031,1738827043948,-500.0,0.00013972,2]
[351873032,1738827043958,-500.0,0.00013972,2]
[351873033,1738827043969,-800.41,0.00013972,2]
[351873034,1738827043979,-500.0,0.00013972,2]
[351873035,1738827043990,-17159.54,0.00013972,2]
[351873036,1738827043999,-24314.24,0.00013972,2]
[351873037,1738827044010,-500.0,0.00013972,2]
[351873039,1738827044021,-1267.0,0.00013972,2]
[351873041,1738827044033,-500.0,0.00013972,2]
[351873043,1738827044043,-1324.23,0.00013972,2]
[351873046,1738827044053,-655.25,0.00013972,2]
[351873048,1738827044063,-264.76757548,0.00013972,2]
[351873050,1738827044073,-3148.27,0.00013972,2]
[351873052,1738827044083,-2149.83,0.00013972,2]
[351873054,1738827044093,-500.0,0.00013972,2]
[351873056,1738827044104,-1890.03,0.00013972,2]
[351873058,1738827044114,-500.0,0.00013972,2]
[351873060,1738827044124,-500.0,0.00013972,2]
[351873062,1738827044134,-515.71,0.00013972,2]
[351873064,1738827044145,-6949.43,0.00013972,2]
[351873066,1738827044154,-500.0,0.00013972,2]
[351873068,1738827044164,-500.0,0.00013972,2]
[351873070,1738827044174,-500.0,0.00013972,2]
[351873072,1738827044184,-1234.02,0.00013972,2]
[351873074,1738827044195,-500.0,0.00013972,2]
[351873076,1738827044205,-400.0,0.00013973,2]
[351873078,1738827044215,-1000.0,0.00014,14]
[351873080,1738827044225,-1000.0,0.00014,3]
[351873083,1738827044234,-218.19091382,0.00014009,2]
[351873085,1738827044244,-812.0,0.000141,5]
[351873087,1738827044254,-500.0,0.00014109,2]
[351873089,1738827044263,-500.0,0.00014109,2]
[351873091,1738827044275,-500.0,0.00014109,2]
[351873093,1738827044285,-345.91357203,0.00014109,2]
[351873095,1738827044295,-222.37667853,0.00014109,2]
[351873097,1738827044305,-500.0,0.00014109,2]
[351873099,1738827044315,-500.0,0.00014109,2]
[351873101,1738827044325,-500.0,0.00014109,2]
[351873103,1738827044335,-500.0,0.00014109,2]
[351873105,1738827044345,-500.0,0.00014109,2]
[351873107,1738827044356,-500.0,0.00014109,2]
[351873109,1738827044368,-964.42,0.00014109,2]
[351873112,1738827044378,-1017.08,0.00014109,2]
[351873114,1738827044388,-500.0,0.00014109,2]
[351873116,1738827044399,-500.0,0.00014109,2]
[351873118,1738827044408,-500.0,0.00014109,2]
[351873120,1738827044419,-500.0,0.00014109,2]
[351873122,1738827044429,-500.0,0.00014109,2]
[351873124,1738827044439,-155.05068736,0.00014109,2]
[351873126,1738827044449,-1266.49,0.00014109,2]
[351873128,1738827044459,-518.09,0.00014109,2]
[351873130,1738827044469,-500.0,0.00014109,2]
[351873132,1738827044479,-500.0,0.00014109,2]
[351873134,1738827044489,-500.0,0.00014109,2]
[351873136,1738827044499,-1116.83,0.00014109,2]
[351873138,1738827044509,-500.0,0.00014109,2]
[351873141,1738827044519,-500.0,0.00014109,2]
[351873143,1738827044529,-500.0,0.00014109,2]
[351873145,1738827044540,-703.29,0.00014109,2]
[351873147,1738827044550,-500.0,0.00014109,2]
[351873149,1738827044560,-500.0,0.00014109,2]
[351873151,1738827044571,-250.6719059,0.00014109,2]
[351873153,1738827044580,-506.19836677,0.00014109,2]
[351873155,1738827044590,-500.0,0.00014109,2]
[351873157,1738827044600,-500.0,0.00014109,2]
[351873159,1738827044610,-500.0,0.00014109,2]
[351873161,1738827044621,-500.0,0.00014109,2]
[351873163,1738827044631,-384.32594793,0.00014109,2]
[351873165,1738827044641,-500.0,0.00014109,2]
[351873167,1738827044651,-500.0,0.00014109,2]
[351873170,1738827044660,-500.0,0.00014109,2]
[351873172,1738827044670,-759.98,0.00014109,2]
[351873174,1738827044683,-500.0,0.00014109,2]
[351873176,1738827044694,-500.0,0.00014109,2]
[351873178,1738827044705,-500.0,0.00014109,2]
[351873180,1738827044715,-500.0,0.00014109,2]
[351873182,1738827044727,-500.0,0.00014109,2]
[351873184,1738827044737,-500.0,0.00014109,2]
[351873186,1738827044747,-569.38,0.00014109,2]
[351873188,1738827044759,-500.0,0.00014109,2]
[351873190,1738827044770,-743.19,0.00014109,2]
[351873192,1738827044780,-500.0,0.00014109,2]
[351873194,1738827044790,-500.0,0.00014109,2]
[351873196,1738827044799,-500.0,0.00014109,2]
[351873198,1738827044810,-1257.54,0.00014109,2]
[351873200,1738827044819,-500.0,0.00014109,2]
[351873202,1738827044830,-962.78,0.00014109,2]
[351873205,1738827044840,-1355.69,0.00014109,2]
[351873207,1738827044850,-3143.94,0.00014109,2]
[351873209,1738827044860,-1695.93,0.00014109,2]
[351873211,1738827044870,-1700.76,0.00014109,2]
[351873213,1738827044880,-815.36,0.00014109,2]
[351873215,1738827044890,-500.0,0.00014109,2]
[351873217,1738827044900,-500.0,0.00014109,2]
[351873219,1738827044909,-500.0,0.00014109,2]
[351873221,1738827044919,-500.0,0.00014109,2]
[351873223,1738827044930,-604.9,0.00014109,2]
[351873225,1738827044939,-500.0,0.00014109,2]
[351873227,1738827044949,-500.0,0.00014109,2]
[351873229,1738827044959,-1235.37,0.00014109,2]
[351873231,1738827044969,-500.0,0.00014109,2]
[351873233,1738827044979,-713.69,0.00014109,2]
[351873235,1738827044989,-500.0,0.00014109,2]
[351873237,1738827044999,-500.0,0.00014109,2]
[351873239,1738827045009,-3813.41,0.00014109,2]
[351873241,1738827045019,-1676.44,0.00014109,2]
[351873244,1738827045028,-500.0,0.00014109,2]
[351873246,1738827045038,-500.0,0.00014109,2]
[351873248,1738827045048,-500.0,0.00014109,2]
[351873250,1738827045057,-500.0,0.00014109,2]
[351873252,1738827045068,-500.0,0.00014109,2]
[351873254,1738827045078,-500.0,0.00014109,2]
[351873256,1738827045088,-500.0,0.00014109,2]
[351873258,1738827045098,-606.12,0.00014109,2]
[351873260,1738827045108,-13091.96,0.00014109,2]
[351873262,1738827045118,-582.56,0.00014109,2]
[351873264,1738827045128,-500.0,0.00014109,2]
[351873266,1738827045137,-500.0,0.00014109,2]
[351873268,1738827045147,-500.0,0.00014109,2]
[351873270,1738827045157,-1073.36,0.00014109,2]
[351873272,1738827045166,-500.0,0.00014109,2]
[351873274,1738827045176,-3485.2,0.00014109,2]
[351873276,1738827045186,-609.56,0.00014109,2]
[351873278,1738827045196,-645.54,0.00014109,2]
[351873280,1738827045206,-500.0,0.00014109,2]
[351873282,1738827045216,-1343.15,0.00014109,2]
[351873284,1738827045226,-500.0,0.00014109,2]
[351873286,1738827045236,-500.0,0.00014109,2]
[351873288,1738827045246,-620.89,0.00014109,2]
[351873290,1738827045257,-3645.46,0.00014109,2]
[351873293,1738827045267,-2566.62,0.00014109,2]
[351873295,1738827045278,-500.0,0.00014109,2]
[351873297,1738827045287,-500.0,0.00014109,2]
[351873299,1738827045297,-3471.13,0.00014109,2]
[351873301,1738827045307,-856.46,0.00014109,2]
[351873303,1738827045316,-500.0,0.00014109,2]
[351873305,1738827045327,-2863.41,0.00014109,2]
[351873307,1738827045337,-500.0,0.00014109,2]
[351873309,1738827045347,-2602.07,0.00014109,2]
[351873311,1738827045357,-1320.56,0.00014109,2]
[351873313,1738827045368,-1122.39,0.00014109,2]
[351873315,1738827045378,-500.0,0.00014109,2]
[351873317,1738827045388,-500.0,0.00014109,2]
[351873319,1738827045398,-500.0,0.00014109,2]
[351873321,1738827045408,-1221.21,0.00014109,2]
[351873323,1738827045417,-500.0,0.00014109,2]
[351873325,1738827045427,-500.0,0.00014109,2]
[351873327,1738827045437,-500.0,0.00014109,2]
[351873329,1738827045446,-557.12,0.00014109,2]
[351873331,1738827045456,-500.0,0.00014109,2]
[351873334,1738827045467,-229.5921136,0.00014109,2]
[351873336,1738827045476,-1103.49,0.00014109,2]
[351873338,1738827045486,-634.14,0.00014109,2]
[351873340,1738827045495,-1441.66,0.00014109,2]
[351873342,1738827045504,-587.65,0.00014109,2]
[351873344,1738827045515,-500.0,0.00014109,2]
[351873346,1738827045525,-500.0,0.00014109,2]
[351873348,1738827045534,-800.41,0.00014109,2]
[351873350,1738827045545,-500.0,0.00014109,2]
[351873352,1738827045555,-17159.54,0.00014109,2]
[351873354,1738827045564,-24314.24,0.00014109,2]
[351873356,1738827045574,-1267.0,0.00014109,2]
[351873358,1738827045583,-500.0,0.00014109,2]
[351873360,1738827045593,-1324.23,0.00014109,2]
[351873362,1738827045603,-655.25,0.00014109,2]
[351873364,1738827045613,-3148.27,0.00014109,2]
[351873366,1738827045624,-2149.83,0.00014109,2]
[351873369,1738827045634,-500.0,0.00014109,2]
[351873371,1738827045644,-1890.03,0.00014109,2]
[351873373,1738827045653,-500.0,0.00014109,2]
[351873375,1738827045663,-500.0,0.00014109,2]
[351873377,1738827045676,-515.71,0.00014109,2]
[351873379,1738827045687,-6949.43,0.00014109,2]
[351873381,1738827045697,-500.0,0.00014109,2]
[351873383,1738827045707,-500.0,0.00014109,2]
[351873385,1738827045718,-500.0,0.00014109,2]
[351873387,1738827045728,-1234.02,0.00014109,2]
[351873389,1738827045738,-492.82084091,0.00014213,2]
[351873391,1738827045748,-537.0,0.00014219,2]
[351873393,1738827045759,-1975.0,0.00014219,2]
[351873395,1738827045769,-2297.0,0.00014219,2]
[351873397,1738827045779,-500.0,0.00014229,2]
[351873399,1738827045788,-152.628,0.00014245,2]
[351873402,1738827045798,-500.0,0.00014246,2]
[351873404,1738827045808,-264.28579917,0.00014246,2]
[351873406,1738827045818,-500.0,0.00014246,2]
[351873409,1738827045828,-500.0,0.00014246,2]
[351873411,1738827045838,-500.0,0.00014246,2]
[351873413,1738827045848,-500.0,0.00014246,2]
[351873416,1738827045858,-500.0,0.00014246,2]
[351873419,1738827045868,-500.0,0.00014246,2]
[351873422,1738827045878,-500.0,0.00014246,2]
[351873425,1738827045887,-964.42,0.00014246,2]
[351873427,1738827045897,-1017.08,0.00014246,2]
[351873429,1738827045907,-500.0,0.00014246,2]
[351873431,1738827045916,-500.0,0.00014246,2]
[351873433,1738827045926,-500.0,0.00014246,2]
[351873435,1738827045937,-500.0,0.00014246,2]
[351873437,1738827045947,-500.0,0.00014246,2]
[351873439,1738827045958,-1266.49,0.00014246,2]
[351873441,1738827045969,-518.09,0.00014246,2]
[351873443,1738827045978,-500.0,0.00014246,2]
[351873445,1738827045989,-500.0,0.00014246,2]
[351873448,1738827046000,-500.0,0.00014246,2]
[351873450,1738827046010,-1116.83,0.00014246,2]
[351873452,1738827046020,-500.0,0.00014246,2]
[351873454,1738827046032,-500.0,0.00014246,2]
[351873456,1738827046042,-500.0,0.00014246,2]
[351873458,1738827046052,-703.29,0.00014246,2]
[351873460,1738827046062,-500.0,0.00014246,2]